Cogmind - Beta 17 @@@ ROGUE MODE // 2026.07.23 @ 18:28:55 Player: V1-Dll Result: Self-destructed Performance ------------- Evolutions (1) 500 Regions Visited (3) 600 Robots Destroyed (34) 170 Value Destroyed (698) 698 Prototype IDs (1) 20 Alien Tech Used (0) 0 Bonus (0) 0 TOTAL SCORE: 1988 Bonus ------- None Cogmind --------- Core Integrity 156/400 Matter 188/300 Energy 100/100 System Corruption 3% Temperature Cool (0) Movement Core (100) Ox1 Location -9/Materials Parts ------- > --- POWER (1) -------- (None) > --- PROPULSION (2) --- (None) > --- UTILITY (4) ------ Improved Signal Interpreter > --- WEAPON (2) ------- Missile Launcher > --- INVENTORY (5) ---- Experimental Sensor Array Improved Signal Interpreter Missile Launcher Missile Launcher Peak State ------------ > --- POWER ------------ (None) > --- PROPULSION ------- (None) > --- UTILITY ---------- Improved Signal Interpreter > --- WEAPON ----------- Makeshift Sword > --- INVENTORY -------- Experimental Sensor Array Improved Signal Interpreter Missile Launcher Missile Launcher Missile Launcher [Rating: 9] Favorites ----------- Power None Propulsion None Utility Hacking Suite Processor Improved Signal Interpreter Hackware Hacking Suite Weapon Assault Rifle Ballistic Gun Assault Rifle Launcher Rocket Launcher Slashing Weapon Makeshift Sword Build | -11 -10 -10 -9 ------- Run | Yrd Mat Min Mat Slots Evolved 2 | . . . 2 Power . | . . . . Propulsion . | . . . . Utility 2 | . . . 2 Weapon . | . . . . Parts Attached 7 | 1 1 1 4 Power . | . . . . Engine . | . . . . Core . | . . . . Reactor . | . . . . Propulsion . | . . . . Treads . | . . . . Leg . | . . . . Wheel . | . . . . Hover . | . . . . Flight . | . . . . Utility 2 | . 1 . 1 Device . | . . . . Storage . | . . . . Processor 1 | . . . 1 Hackware 1 | . 1 . . Protection . | . . . . Artifact . | . . . . Weapon 5 | 1 . 1 3 Energy Gun . | . . . . Energy Cannon . | . . . . Ballistic Gun 1 | 1 . . . Ballistic Cannon . | . . . . Launcher 3 | . . 1 2 Special Weapon . | . . . . Impact Weapon . | . . . . Slashing Weapon 1 | . . . 1 Piercing Weapon . | . . . . Special Melee Weapon . | . . . . Unidentified Prototypes . | . . . . Parts Lost 3 | . . . 3 Power . | . . . . Propulsion . | . . . . Utility 1 | . . . 1 Weapon 2 | . . . 2 Highest Loss Streak 1 | . . . 1 To Critical Strikes . | . . . . Average Backups 1 | . . 1 3 Power . | . . . . Propulsion . | . . . . Utility . | . . . 1 Weapon . | . . . 2 Tool/Special . | . . . . Unused Backups 4 | . . . 4 Power . | . . . . Propulsion . | . . . . Utility 2 | . . . 2 Weapon 2 | . . . 2 Tool/Special . | . . . . Average Slot Usage (%) 19 | . 20 28 14 Processor 1 | . . . 2 Hackware 5 | . 6 14 1 Ballistic Gun 8 | . 14 13 . Launcher 1 | . . . 2 Slashing Weapon 2 | . . . 7 Peak Build Rating 9 | 1 4 6 9 Average Rating 3 | . 2 4 5 On Entrance 2 | . 1 4 6 Avg Prop Armor Cover (%) . | . . . . Naked Turns 37 | . . . 37 Heaviest Build 6 | 2 2 4 6 Greatest Support 3 | 3 3 3 3 Greatest Overweight (x) 1 | . . 1 1 Average Overweight (x) . | . . . . Largest Inventory Capacity 5 | 5 5 5 5 Average Capacity 5 | 5 5 5 5 Most Carried 5 | . . 3 5 Average Carried 1 | . . 1 3 Final Capacity 5 | 5 5 5 5 Final Carried 4 | . . 3 4 Class Distribution -------------------- 100% | Mutant Dominant Class ---------------- Mutant | -10/Materials Mutant | -10/Mines Mutant | -9/Materials Resources | -11 -10 -10 -9 ----------- Run | Yrd Mat Min Mat Matter Collected 450 | 210 71 42 127 Remotely . | . . . . Salvage Created 893 | . 118 21 754 Parts 52 | . 11 5 36 Haulers Intercepted 2 | . . . 2 Recyclers Shooed . | . . . . Parts Field Recycled . | . . . . Retrieved Matter . | . . . . Parts Self-Destructed . | . . . . Prevented . | . . . . Parts Restored . | . . . . Kills | -11 -10 -10 -9 ------- Run | Yrd Mat Min Mat Combat Hostiles Destroyed 24 | . 4 3 17 Melee 7 | . . . 7 Guns 4 | . 4 . . AOE 13 | . . 3 10 Classes Destroyed 8 | . 4 . 4 Hauler 2 | . . . 2 Recycler 2 | . . . 2 Operator 3 | . 1 . 2 Watcher 3 | . 1 . 2 Swarmer 10 | . 3 3 4 Grunt 12 | . 1 . 11 Brawler 1 | . . . 1 Sentry 1 | . . . 1 Best Kill Streak 4 | . 3 3 4 Combat Bots Only 4 | . 3 3 4 Max Kills in Single Turn 3 | . 1 3 3 Gunslinging . | . . . . Exploded 3 | . . 3 2 Melee 1 | . . . 1 Uniques/NPCs Destroyed . | . . . . Combat | -11 -10 -10 -9 -------- Run | Yrd Mat Min Mat Hostile Shots Fired 53 | . 20 3 30 Missed 11 | . 6 1 4 Hits 42 | . 14 2 26 Melee 1 | . . . 1 Projectile 41 | . 14 2 25 Critical Strikes 1 | . 1 . . Damage Taken 607 | . 185 25 397 Core 352 | . 108 . 244 Absorbed by Shields . | . . . . Core Remaining (%) 78 | 100 . 56 . Volleys Fired 42 | . 29 1 12 Largest 1 | . 1 1 1 Hottest 36 | . 20 33 36 Shots Fired 42 | . 29 1 12 Gun 29 | . 29 . . Cannon . | . . . . Launcher 13 | . . 1 12 Special . | . . . . Kinetic 29 | . 29 . . Thermal . | . . . . Explosive 13 | . . 1 12 Electromagnetic . | . . . . Robot Hit Streak 5 | . 5 2 3 Robot Miss Streak 2 | . 2 . 1 Penetration Max . | . . . . Secondary Targets . | . . . . Shots Hit Robots 52 | . 18 1 33 Core Hits 39 | . 9 3 27 Critical Kills . | . . . . Critical Parts Destroyed . | . . . . Critical Strikes 3 | . . . 3 Sever 3 | . . . 3 Melee Attacks 41 | . . . 41 Impact . | . . . . Slashing 41 | . . . 41 Piercing . | . . . . Sneak Attacks 5 | . . . 5 Combat Hostiles . | . . . . Follow-up Attacks . | . . . . Damage Inflicted 2421 | . 231 147 2043 Guns 222 | . 222 . . Cannons . | . . . . Explosions 945 | . . 147 798 Melee 1245 | . . . 1245 Ramming 9 | . 9 . . Kinetic 222 | . 222 . . Thermal . | . . . . Explosive 945 | . . 147 798 Electromagnetic . | . . . . Impact . | . . . . Slashing 1245 | . . . 1245 Piercing . | . . . . Highest Corruption 3 | . . . 3 Average Corruption 3 | . . . 3 Corruption Purged . | . . . . Corruption Blocked . | . . . . Effects 1 | . . . 1 Data Loss (minor) 1 | . . . 1 Overload Shots . | . . . . Overflow Damage 155 | . . 5 150 Projectiles . | . . . . Explosions 49 | . . 5 44 Melee 106 | . . . 106 Knockbacks 1 | . 1 . . Impact 1 | . 1 . . Kinetic . | . . . . Secondary . | . . . . Self-Inflicted Damage 118 | . 4 11 103 Shots 5 | . . 1 4 Rammed 2 | . 2 . . Targets Rammed 2 | . 2 . . Kicked . | . . . . Crushed . | . . . . Highest Temperature 12 | . 12 . . Average Temperature 9 | . 9 . . Received Heat Transfer 189 | . 78 . 111 Siege Activations . | . . . . Martial Activations . | . . . . Shielding Activations . | . . . . Robots Disrupted . | . . . . Combat Hostiles . | . . . . Robots Corrupted . | . . . . Combat Hostiles . | . . . . Parts Fried . | . . . . Impact Corruptions . | . . . . Robots Melted . | . . . . Combat Hostiles . | . . . . Parts Melted . | . . . . Heat Transferred . | . . . . Parts Sabotaged . | . . . . Parts Stolen . | . . . . Parts Stripped . | . . . . Power Chain Reactions . | . . . . Alert | -11 -10 -10 -9 ------- Run | Yrd Mat Min Mat Maximum Alert Level 1 | . . . 1 Low Security (%) 80 | 100 100 100 52 Level 1 19 | . . . 47 Level 2 . | . . . . Level 3 . | . . . . Level 4 . | . . . . Level 5 . | . . . . High Security . | . . . . Max Security . | . . . . Peak Influence 340 | . 90 83 340 Initial 27 | . . 24 27 Average 93 | . 37 10 186 Influence Increases 919 | . 287 83 549 Destroy 0b10 Robot/C 480 | . 80 60 340 Destroy 0b10 Robot/NC 45 | . 10 . 35 Destroy Leader 100 | . 22 10 68 Successful Hack 75 | . 55 5 15 Destroy Structure 99 | . . 8 91 Lose Combat Pursuer 120 | . 120 . . Influence Decreases 595 | . 223 74 298 Entered New Map 86 | . . 40 46 Time Decay 432 | . 176 34 222 Lost Part 30 | . . . 30 Lost Ally 10 | . 10 . . Purge Threat 37 | . 37 . . Squads Dispatched 3 | . 1 . 2 Investigation 1 | . . . 1 Extermination . | . . . . Reinforcement 2 | . 1 . 1 Assault . | . . . . Garrison . | . . . . Intercept . | . . . . Searches Triggered . | . . . . Construction Impeded . | . . . . Haulers Reinforced . | . . . . Active Scanning Responses . | . . . . Cargo Convoy Interrupts . | . . . . Stealth | -11 -10 -10 -9 --------- Run | Yrd Mat Min Mat Distress Signals 5 | . 1 . 4 Communications Jammed . | . . . . Distress Signals . | . . . . Times Spotted 59 | . 30 3 26 Peak Tracking Total 6 | . 6 3 6 Tactical Retreats 4 | . 4 . . Traps | -11 -10 -10 -9 ------- Run | Yrd Mat Min Mat Traps Triggered . | . . . . Indirectly . | . . . . Trap Hack Attempts . | . . . . Triggered . | . . . . Disarmed . | . . . . Reprogrammed . | . . . . Reused . | . . . . Traps Extracted . | . . . . Installed . | . . . . Triggered . | . . . . Machines | -11 -10 -10 -9 ---------- Run | Yrd Mat Min Mat Machines Disabled . | . . . . Max in Single Turn . | . . . . Machines Repaired . | . . . . Machines Dismantled . | . . . . Machines Sabotaged . | . . . . Overloaded Fab Kills . | . . . . Hacking | -11 -10 -10 -9 --------- Run | Yrd Mat Min Mat Machines Accessed 14 | . 6 1 7 Terminals 13 | . 6 1 6 Fabricators . | . . . . Repair Stations . | . . . . Recycling Units . | . . . . Scanalyzers 1 | . . . 1 Garrison Access . | . . . . Total Hacks 60 | . 33 4 23 Successful 38 | . 21 1 16 Failed 21 | . 11 3 7 Catastrophic 2 | . . 2 . Database Lockouts 1 | . 1 . . Manual 48 | . 24 4 20 Terminals 59 | . 33 4 22 Fabricators . | . . . . Repair Stations . | . . . . Recycling Units . | . . . . Scanalyzers 1 | . . . 1 Garrison Access . | . . . . Terminal Hacks 19 | . 14 1 4 Robot Analysis 5 | . 3 . 2 Branch Access Points 1 | . 1 . . Terminal Index 1 | . 1 . . Unreport Threat 1 | . 1 . . Locate Traps 3 | . 1 . 2 Dispatch Records 1 | . 1 . . Patrol Status 1 | . 1 . . Reinforcement Status 1 | . 1 . . Hauler Manifests 1 | . 1 . . Registered Components 2 | . 2 . . Zone Layout 2 | . 1 1 . Fabricator Hacks . | . . . . Repair Station Hacks . | . . . . Recycling Unit Hacks . | . . . . Scanalyzer 1 | . . . 1 Insert Component 1 | . . . 1 Garrison Access Hacks . | . . . . Unauthorized Hacks 18 | . 7 . 11 Terminals 18 | . 7 . 11 Assimilate 2 | . 1 . 1 Botnet 9 | . 4 . 5 Skim 7 | . 2 . 5 Fabricators . | . . . . Repair Stations . | . . . . Recycling Units . | . . . . Scanalyzers . | . . . . Garrison Access . | . . . . Data Cores Recovered . | . . . . Used . | . . . . Hacking Detections 13 | . 6 1 6 Full Trace Events 1 | . . . 1 Feedback Events . | . . . . Feedback Blocked . | . . . . Robot Schematics Acquired . | . . . . Robots Built . | . . . . Authchips . | . . . . Time . | . . . . Total Robot Build Rating . | . . . . Part Schematics Acquired . | . . . . Parts Built . | . . . . Authchips . | . . . . Time . | . . . . Total Part Build Rating . | . . . . Part Studies Acquired . | . . . . Parts Repaired . | . . . . Time . | . . . . Parts Recycled . | . . . . Recycled Matter . | . . . . Retrieved Matter . | . . . . Retrieved Components . | . . . . Parts Scanalyzed . | . . . . Part Schematics Acquired . | . . . . Parts Damaged . | . . . . Bothacking | -11 -10 -10 -9 ------------ Run | Yrd Mat Min Mat Used RIF Installer . | . . . . Robots Hacked . | . . . . Non-combat . | . . . . Combat . | . . . . Robot Hacks Applied . | . . . . Relay Couplers Released . | . . . . Fabnet Peak Effective % . | . . . . Robots Rewired . | . . . . Allies Hacked . | . . . . Hacks Repelled . | . . . . Allies | -11 -10 -10 -9 -------- Run | Yrd Mat Min Mat Total Allies 2 | . 1 . 1 Largest Group 1 | . 1 . 1 Highest-Rated Group 10 | . 10 . 10 Highest-Rated Ally 10 | . 10 . 10 Total Orders . | . . . . Ally Attacks . | . . . . Total Damage . | . . . . Kills . | . . . . Allies Corrupted . | . . . . Allies Melted . | . . . . Intel | -11 -10 -10 -9 ------- Run | Yrd Mat Min Mat Active Infowar (turns) . | . . . . Robot Analysis Total 5 | . 3 . 2 Derelict Logs Recovered 1 | . . 1 . Drone Launches . | . . . . Drone Recoveries . | . . . . Exploration | -11 -10 -10 -9 ------------- Run | Yrd Mat Min Mat Turns Passed 1184 | 12 551 147 474 Spaces Moved 1613 | 21 810 270 512 Core 1613 | 21 810 270 512 Treads . | . . . . Legs . | . . . . Wheels . | . . . . Hover . | . . . . Flight . | . . . . Fastest Speed 50 | 50 50 50 50 Average Speed 52 | 50 50 51 57 Slowest Speed 100 | 50 50 100 100 Overloaded Moves . | . . . . Propulsion Burnouts . | . . . . Robots Hopped . | . . . . Potential Cave-ins . | . . . . Cave-ins Triggered . | . . . . Exploration Rate (%) 55 | 4 86 83 47 Regions Visited 3 Branch Regions 1 Pre-discovered Areas . | . . . . Known Exits Taken 1 | . 1 . . Unknown Exits Taken 2 | 1 . 1 . Scrap Searched 2 | . . 2 . Spaces Dug . | . . . . Terrain Destroyed 107 | . . 8 99 Melee . | . . . . Projectile . | . . . . AOE 107 | . . 8 99 Terrain Rammed . | . . . . Walls Destroyed . | . . . . Machines Disabled . | . . . . Actions | -11 -10 -10 -9 --------- Run | Yrd Mat Min Mat Total 1858 | 21 925 276 636 Wait 138 | . 84 2 52 Move 1610 | 20 809 269 512 Hop . | . . . . Pick Up 8 | . . 3 5 Fast Attach 3 | 1 1 . 1 Attach 4 | . . . 4 Detach 1 | . . . 1 Swap 7 | . . 1 6 Drop 2 | . . . 2 Fire 42 | . 29 1 12 Melee 41 | . . . 41 Ram 2 | . 2 . . Kick . | . . . . Crush . | . . . . Escape Stasis . | . . . . Rewire . | . . . . Trap . | . . . . Miscellaneous . | . . . . Route ------- -11/Scrapyard -10/Materials (discovered 5 exits: *Mat x3 / *Min / [*Sub]) -10/Mines (discovered 2 exits: *Mat x2) -9/Materials (discovered 2 exits: [*Mat] / *Sto) History --------- Turn | Location | Event 4 | -11/Scrapyard | Discovered new exit (range 16) 13 | -11/Scrapyard | Entered Materials 113 | -10/Materials | Discovered new exit (range 8) 182 | -10/Materials | Discovered new exit (range 3) 192 | -10/Materials | Discovered new exit (range 14) 320 | -10/Materials | Build established: Mutant 370 | -10/Materials | Identified exit to Mines 370 | -10/Materials | Central database locked down 382 | -10/Materials | Discovered new exit (range 16) 513 | -10/Materials | Derelicts attacked the area 535 | -10/Materials | Discovered new exit (range 7) 564 | -10/Materials | Entered Mines 598 | -10/Mines | Found a damaged Exp. Sensor Array with a note attached 599 | -10/Mines | Found Prototype Device 626 | -10/Mines | Discovered new exit (range 10) 633 | -10/Mines | Received a Rocket Launcher from a helpful Derelict 680 | -10/Mines | A weapon hastily lodged in a ceiling crevice suddenly fell to the ground 692 | -10/Mines | Discovered new exit (range 8) 711 | -10/Mines | Entered Materials 711 | -9/Materials | Evolved 2 slots: Utility x2 712 | -9/Materials | Identified exit to Storage 1001 | -9/Materials | Core integrity fell below 50% 1042 | -9/Materials | Identified Exp. Sensor Array 1167 | -9/Materials | Discovered new exit (range 16) 1185 | -9/Materials | Self-destructed Last Messages --------------- are protected by additional armor to increase their chances of survival while closing distance with a target, after which their hammer can quickly crush vital components and diminish the target's ability to operate. 01093_ Technician 2a reveals location of Alarm Trap. 01117_ The unstable cave ceiling collapses. 01118_ Technician 2a destroyed. 01124_ The unstable cave ceiling collapses. 01127_ Ion Engine crushed. 01131_ Mak. Sword destroyed. 01131_ System corrupted by crushing effect (+3). 01134_ The unstable cave ceiling collapses. 01136_ B-36 Bruiser destroyed. 01137_ The unstable cave ceiling collapses. 01141_ Acquired 1 matter. 01151_ The unstable cave ceiling collapses. 01167_ System corrupted: Component data lost. 01167_ EXIT=FOUND Map ----- +----------------------------------------------------+ | ????????????????????????????????# ## """ ## | | ????????????????????????????????# ## ## | | ????????????????????????????????+ + """ [## | | ????????????????????????????????#^^^## """ ## | | ????????????????????????????????#^^^## """ ## | | ????????????????????????????????# # ## | | ????????????????##########??????# #% | | ????????????????? ######## # # | | ????????????????? # | | ?????????????????""" """ # | | ???????????????# """ """ # | | ???????????????# """ """ + ##### # # ## | | ???????????????# # #???### ### # | | ???????????????# # #?????###?### """ ## | | ???????????????# # #???????????# """ #? | | ???????????????########### #?######????# """ #? | | ??????????????????# # # #????# #? | | ??????????????????# """ # # #????# #? | | ??????????????????# R" + + "" #????########? | | ??????????????????# """ # # S"" #????????????? | | ??????????????????# # # "" #????????????? | | ??????????????????# !?# #? #????????????? | | ??????????????????######?# #?######????????????? | | ????????????????########## #???????????????????? | | ????????????????# # #???????????????????? | | ????????????????# @ #???????????????????? | | ????????????????# # #???????????????????? | | ????????????????# # < #???????????????????? | | ????????????????# !! ?# #???????????????????? | | ????????????????# !! ?#####???????????????????? | | ????????????????# !! ??????????????????????????? | | ????????????????+ ??????????????????????????? | | ????????????????# ???????????????????????????? | | ????????????????######???????????????????????????? | | ?????????????????????????????????????????????????? | | ?????????????????????????????????????????????????? | | | | | | | | | | | | | | | | | | | | | | | | | | | | | +----------------------------------------------------+ Best States ------------- Heat Dissipation 28 Energy Generation 5 Energy Capacity 100 Matter Stores 300 Matter Capacity 300 Sight Range 16 Terrain Scan Density 10 Evasion (%) 50 Offensive Hacking 10 Item Schematics ----------------- None Robot Schematics ------------------ None Fabricated ------------ Nothing Repaired ---------- Nothing Studied --------- None Alien Tech Used ----------------- None Achievements -------------- None Challenges ------------ None Game ------ Seed NetworkedAerolevSteel Manual? 0 Play Time 00:24:02 Cumulative 339.8 hours Start 2026.07.23 @ 18:05:39 End 2026.07.23 @ 18:28:55 Sessions 1 Manual Loads 0 Difficulty Rogue Special Mode None Game No. 195 Rogue 121 Adventurer 74 Explorer 0 Win Type - Total 17 Types 14/0/0/3/0/0/0/0/0/0 Lore% 72 Gallery% 66 Achievement% 51 Wizard Run 0 Options --------- Layout 2 ASCII 0 Keyboard 0 Movement Mouse Keybinds 0 Fullscreen 1 Font 32/SmallcapsGlow Map View 50x44 Zoom Use 0% Tactical HUD 1 Map Filters NONE Filters NONE Steam 1 RUN: bfdd727d-a43f-4f7a-8ae2-a7a710871692